[Event "Titled Tuesday Blitz September 28 2021"]
[White "Pourkashiyan, Atousa"]
[Black "Williams, Simon K"]
[WhiteFideId "12502014"]
[BlackFideId "404454"]
[WhiteElo "2285"]
[BlackElo "2468"]
[Result "1-0"]
[Round "03"]
[TimeControl "180+1"]
[Date "2021.09.28"]
[WhiteClock "0:00:25"]
[BlackClock "0:00:11"]

1. e4 {[%clk 0:03:00]}  c5 {[%clk 0:02:11]} 2. Nf3 {[%clk 0:02:59]}  d6 {[%clk 0:02:11]} 3. d4 {[%clk 0:02:58]}  cxd4 {[%clk 0:02:11]} 4. Nxd4 {[%clk 0:02:59]}  Nf6 {[%clk 0:02:11]} 5. Nc3 {[%clk 0:02:59]}  g6 {[%clk 0:02:11]} 6. Be2 {[%clk 0:02:53]}  Bg7 {[%clk 0:02:09]} 7. O-O {[%clk 0:02:51]}  Nc6 {[%clk 0:02:08]} 8. Be3 {[%clk 0:02:52]}  O-O {[%clk 0:02:07]} 9. Qd2 {[%clk 0:02:52]}  Bd7 {[%clk 0:02:07]} 10. Rad1 {[%clk 0:02:50]}  Rc8 {[%clk 0:02:07]} 11. h3 {[%clk 0:02:20]}  Ne5 {[%clk 0:01:48]} 12. f4 {[%clk 0:02:15]}  Nc4 {[%clk 0:01:48]} 13. Bxc4 {[%clk 0:02:11]}  Rxc4 {[%clk 0:01:49]} 14. e5 {[%clk 0:01:56]}  Ne8 {[%clk 0:01:43]} 15. Nf3 {[%clk 0:01:27]}  Bc6 {[%clk 0:01:09]} 16. b3 {[%clk 0:01:12]}  Bxf3 {[%clk 0:01:09]} 17. Rxf3 {[%clk 0:01:10]}  Rc8 {[%clk 0:01:08]} 18. Ne4 {[%clk 0:01:03]}  Qc7 {[%clk 0:01:02]} 19. exd6 {[%clk 0:01:01]}  Nxd6 {[%clk 0:01:01]} 20. Nxd6 {[%clk 0:01:01]}  exd6 {[%clk 0:00:57]} 21. c4 {[%clk 0:01:00]}  Rfd8 {[%clk 0:00:36]} 22. Qd5 {[%clk 0:00:42]}  a6 {[%clk 0:00:24]} 23. f5 {[%clk 0:00:42]}  Qc6 {[%clk 0:00:20]} 24. fxg6 {[%clk 0:00:42]}  Qxd5 {[%clk 0:00:19]} 25. gxh7+ {[%clk 0:00:41]}  Kxh7 {[%clk 0:00:19]} 26. Rxd5 {[%clk 0:00:42]}  Be5 {[%clk 0:00:17]} 27. Rxf7+ {[%clk 0:00:41]}  Kg6 {[%clk 0:00:17]} 28. Rxb7 {[%clk 0:00:39]}  Re8 {[%clk 0:00:17]} 29. Kf2 {[%clk 0:00:33]}  Kf5 {[%clk 0:00:15]} 30. Bd4 {[%clk 0:00:31]}  Ke4 {[%clk 0:00:14]} 31. Bxe5 {[%clk 0:00:30]}  Rf8+ {[%clk 0:00:12]} 32. Ke2 {[%clk 0:00:25]}  dxe5 {[%clk 0:00:12]} 33. Re7 {[%clk 0:00:25]}  Rce8 {[%clk 0:00:11]} 34. Rdxe5+ {[%clk 0:00:25]} 1-0


[Site "https://www.chess.com"]

[Event "Titled Tuesday Blitz September 28 2021"]
[White "Quintiliano Pinto, Renato R."]
[Black "Atanasov, Anthony"]
[WhiteFideId "2117568"]
[BlackFideId "2623897"]
[WhiteElo "2439"]
[BlackElo "1928"]
[Result "1-0"]
[Round "03"]
[TimeControl "180+1"]
[Date "2021.09.28"]
[WhiteClock "0:00:12"]
[BlackClock "0:00:02"]

1. d4 {[%clk 0:02:35]}  e5 {[%clk 0:02:59]} 2. dxe5 {[%clk 0:02:34]}  Nc6 {[%clk 0:02:59]} 3. Nf3 {[%clk 0:02:32]}  Qe7 {[%clk 0:02:58]} 4. Bf4 {[%clk 0:02:16]}  Qb4+ {[%clk 0:02:58]} 5. Bd2 {[%clk 0:02:17]}  Qxb2 {[%clk 0:02:58]} 6. Nc3 {[%clk 0:02:17]}  Bb4 {[%clk 0:02:58]} 7. Rb1 {[%clk 0:02:14]}  Qxc3 {[%clk 0:02:59]} 8. Bxc3 {[%clk 0:02:13]}  Bxc3+ {[%clk 0:03:00]} 9. Nd2 {[%clk 0:02:13]}  Nxe5 {[%clk 0:03:00]} 10. Rb3 {[%clk 0:02:11]}  Ba5 {[%clk 0:03:00]} 11. e3 {[%clk 0:01:58]}  Nf6 {[%clk 0:02:58]} 12. Bd3 {[%clk 0:01:52]}  O-O {[%clk 0:02:46]} 13. O-O {[%clk 0:01:52]}  d6 {[%clk 0:02:37]} 14. Rb5 {[%clk 0:01:42]}  Bb6 {[%clk 0:02:02]} 15. Nc4 {[%clk 0:01:37]}  Bd7 {[%clk 0:01:48]} 16. Rb1 {[%clk 0:01:32]}  Bc6 {[%clk 0:01:38]} 17. h3 {[%clk 0:01:05]}  Rfd8 {[%clk 0:01:16]} 18. Qe2 {[%clk 0:01:01]}  Nd5 {[%clk 0:01:13]} 19. Nxe5 {[%clk 0:00:52]}  dxe5 {[%clk 0:01:08]} 20. Qh5 {[%clk 0:00:48]}  e4 {[%clk 0:01:00]} 21. Bc4 {[%clk 0:00:40]}  Rd6 {[%clk 0:00:48]} 22. Rbd1 {[%clk 0:00:36]}  Rad8 {[%clk 0:00:40]} 23. Qh4 {[%clk 0:00:34]}  Nf6 {[%clk 0:00:33]} 24. Rxd6 {[%clk 0:00:31]}  cxd6 {[%clk 0:00:30]} 25. Rd1 {[%clk 0:00:28]}  d5 {[%clk 0:00:25]} 26. Bb3 {[%clk 0:00:28]}  a5 {[%clk 0:00:22]} 27. a4 {[%clk 0:00:26]}  Bc7 {[%clk 0:00:21]} 28. c4 {[%clk 0:00:23]}  dxc4 {[%clk 0:00:12]} 29. Rxd8+ {[%clk 0:00:23]}  Bxd8 {[%clk 0:00:13]} 30. Bxc4 {[%clk 0:00:23]}  Bxa4 {[%clk 0:00:13]} 31. Qg3 {[%clk 0:00:20]}  Nd7 {[%clk 0:00:04]} 32. Qd6 {[%clk 0:00:17]}  Bf6 {[%clk 0:00:03]} 33. Qd5 {[%clk 0:00:13]}  Ne5 {[%clk 0:00:02]} 34. Qxb7 {[%clk 0:00:13]}  h6 {[%clk 0:00:01]} 35. Bb3 {[%clk 0:00:12]}  Bxb3 {[%clk 0:00:01]} 36. Qxb3 {[%clk 0:00:13]}  Nd3 {[%clk 0:00:02]} 37. Qa4 {[%clk 0:00:12]} 1-0


[Site "https://www.chess.com"]

[Event "Titled Tuesday Blitz September 28 2021"]
[White "Rodchenkov, Vitaly"]
[Black "Cunha, Lucas Aguiar"]
[WhiteFideId "4152964"]
[BlackFideId "2125404"]
[WhiteElo "2337"]
[BlackElo "2361"]
[Result "0-1"]
[Round "03"]
[TimeControl "180+1"]
[Date "2021.09.28"]
[WhiteClock "0:02:15"]
[BlackClock "0:02:48"]

1. e4 {[%clk 0:02:27]}  c5 {[%clk 0:02:59]} 2. Nf3 {[%clk 0:02:27]}  e6 {[%clk 0:03:00]} 3. d3 {[%clk 0:02:27]}  Nc6 {[%clk 0:03:00]} 4. Nbd2 {[%clk 0:02:27]}  Nf6 {[%clk 0:03:00]} 5. g3 {[%clk 0:02:28]}  d5 {[%clk 0:03:00]} 6. Bg2 {[%clk 0:02:28]}  g6 {[%clk 0:03:01]} 7. O-O {[%clk 0:02:28]}  Bg7 {[%clk 0:03:01]} 8. Re1 {[%clk 0:02:28]}  O-O {[%clk 0:03:01]} 9. h4 {[%clk 0:02:26]}  a5 {[%clk 0:02:59]} 10. a4 {[%clk 0:02:26]}  b6 {[%clk 0:02:58]} 11. Qe2 {[%clk 0:02:22]}  Ba6 {[%clk 0:02:55]} 12. exd5 {[%clk 0:02:19]}  exd5 {[%clk 0:02:53]} 13. Qf1 {[%clk 0:02:19]}  Nb4 {[%clk 0:02:50]} 14. Ne5 {[%clk 0:02:15]}  Nxc2 {[%clk 0:02:49]} 15. Rb1 {[%clk 0:02:14]}  Nxe1 {[%clk 0:02:48]} 16. Qxe1 {[%clk 0:02:15]}  Re8 {[%clk 0:02:48]} 0-1


[Site "https://www.chess.com"]

[Event "Titled Tuesday Blitz September 28 2021"]
[White "Rosen, Eric"]
[Black "Khusnutdinov, Rustam"]
[WhiteFideId "2032562"]
[BlackFideId "13701703"]
[WhiteElo "2639"]
[BlackElo "2874"]
[Result "0-1"]
[Round "03"]
[TimeControl "180+1"]
[Date "2021.09.28"]
[WhiteClock "0:00:01"]
[BlackClock "0:01:13"]

1. d4 {[%clk 0:03:00]}  Nf6 {[%clk 0:02:59]} 2. Bf4 {[%clk 0:02:59]}  d5 {[%clk 0:02:58]} 3. e3 {[%clk 0:02:57]}  c5 {[%clk 0:02:59]} 4. Nf3 {[%clk 0:02:56]}  Nc6 {[%clk 0:02:59]} 5. Nbd2 {[%clk 0:02:55]}  e6 {[%clk 0:02:59]} 6. c3 {[%clk 0:02:54]}  Nh5 {[%clk 0:02:59]} 7. Be5 {[%clk 0:02:39]}  f6 {[%clk 0:02:57]} 8. Bg3 {[%clk 0:02:29]}  g6 {[%clk 0:02:57]} 9. Bd3 {[%clk 0:01:56]}  Qb6 {[%clk 0:02:56]} 10. Rb1 {[%clk 0:01:56]}  cxd4 {[%clk 0:02:52]} 11. exd4 {[%clk 0:01:51]}  Bg7 {[%clk 0:02:52]} 12. O-O {[%clk 0:00:51]}  Nxg3 {[%clk 0:02:50]} 13. hxg3 {[%clk 0:00:52]}  O-O {[%clk 0:02:51]} 14. Re1 {[%clk 0:00:52]}  e5 {[%clk 0:02:50]} 15. c4 {[%clk 0:00:35]}  Nb4 {[%clk 0:02:35]} 16. Bf1 {[%clk 0:00:35]}  Bf5 {[%clk 0:02:35]} 17. dxe5 {[%clk 0:00:17]}  Bc2 {[%clk 0:02:17]} 18. Qe2 {[%clk 0:00:15]}  Bd3 {[%clk 0:02:03]} 19. Qd1 {[%clk 0:00:15]}  Bc2 {[%clk 0:02:01]} 20. Qe2 {[%clk 0:00:15]}  Bxb1 {[%clk 0:01:59]} 21. Nxb1 {[%clk 0:00:12]}  Rae8 {[%clk 0:02:00]} 22. e6 {[%clk 0:00:11]}  d4 {[%clk 0:01:55]} 23. a3 {[%clk 0:00:11]}  d3 {[%clk 0:01:42]} 24. Qd2 {[%clk 0:00:09]}  Nc2 {[%clk 0:01:26]} 25. Re4 {[%clk 0:00:09]}  f5 {[%clk 0:01:24]} 26. Rh4 {[%clk 0:00:07]}  Qxb2 {[%clk 0:01:19]} 27. Rxh7 {[%clk 0:00:01]}  Kxh7 {[%clk 0:01:15]} 28. Qf4 {[%clk 0:00:01]}  Bf6 {[%clk 0:01:13]} 0-1


[Site "https://www.chess.com"]

[Event "Titled Tuesday Blitz September 28 2021"]
[White "Rustemov, Alexander"]
[Black "pawel83"]
[WhiteFideId "4119002"]
[WhiteElo "2757"]
[BlackElo "2391"]
[Result "1/2-1/2"]
[Round "03"]
[TimeControl "180+1"]
[Date "2021.09.28"]
[WhiteClock "0:00:05"]
[BlackClock "0:00:07"]

1. d4 {[%clk 0:03:00]}  Nf6 {[%clk 0:02:59]} 2. c4 {[%clk 0:03:00]}  g6 {[%clk 0:02:59]} 3. Nf3 {[%clk 0:03:01]}  Bg7 {[%clk 0:02:59]} 4. g3 {[%clk 0:03:01]}  O-O {[%clk 0:02:59]} 5. Bg2 {[%clk 0:03:02]}  d6 {[%clk 0:02:59]} 6. Nc3 {[%clk 0:03:03]}  Nc6 {[%clk 0:02:59]} 7. O-O {[%clk 0:03:02]}  e5 {[%clk 0:02:59]} 8. h3 {[%clk 0:03:02]}  Re8 {[%clk 0:02:55]} 9. dxe5 {[%clk 0:03:02]}  dxe5 {[%clk 0:02:54]} 10. Bg5 {[%clk 0:02:59]}  Qxd1 {[%clk 0:02:47]} 11. Rfxd1 {[%clk 0:02:57]}  h6 {[%clk 0:02:48]} 12. Be3 {[%clk 0:02:52]}  Be6 {[%clk 0:02:39]} 13. b3 {[%clk 0:02:34]}  e4 {[%clk 0:02:32]} 14. Nd4 {[%clk 0:02:22]}  Nxd4 {[%clk 0:01:52]} 15. Bxd4 {[%clk 0:02:22]}  h5 {[%clk 0:01:51]} 16. Rac1 {[%clk 0:02:06]}  c6 {[%clk 0:01:45]} 17. Bxf6 {[%clk 0:02:05]}  Bxf6 {[%clk 0:01:44]} 18. Nxe4 {[%clk 0:02:05]}  Bg7 {[%clk 0:01:37]} 19. Nd6 {[%clk 0:02:03]}  Re7 {[%clk 0:01:36]} 20. c5 {[%clk 0:01:54]}  f5 {[%clk 0:01:08]} 21. Nxb7 {[%clk 0:01:52]}  Rxb7 {[%clk 0:01:05]} 22. Bxc6 {[%clk 0:01:52]}  Rab8 {[%clk 0:01:05]} 23. Bxb7 {[%clk 0:01:51]}  Rxb7 {[%clk 0:01:06]} 24. Rd6 {[%clk 0:01:43]}  Kf7 {[%clk 0:01:05]} 25. h4 {[%clk 0:01:38]}  Be5 {[%clk 0:01:02]} 26. Ra6 {[%clk 0:01:37]}  f4 {[%clk 0:00:52]} 27. gxf4 {[%clk 0:01:34]}  Bxf4 {[%clk 0:00:52]} 28. e3 {[%clk 0:01:35]}  Bb8 {[%clk 0:00:50]} 29. c6 {[%clk 0:01:33]}  Re7 {[%clk 0:00:48]} 30. c7 {[%clk 0:01:29]}  Bxc7 {[%clk 0:00:46]} 31. Rxa7 {[%clk 0:01:05]}  Bh2+ {[%clk 0:00:46]} 32. Kxh2 {[%clk 0:01:05]}  Rxa7 {[%clk 0:00:46]} 33. Rc2 {[%clk 0:01:05]}  Rb7 {[%clk 0:00:41]} 34. Kg3 {[%clk 0:01:04]}  Rb4 {[%clk 0:00:40]} 35. f3 {[%clk 0:01:04]}  Kf6 {[%clk 0:00:38]} 36. e4 {[%clk 0:01:03]}  Rd4 {[%clk 0:00:35]} 37. Rb2 {[%clk 0:00:58]}  Rd1 {[%clk 0:00:32]} 38. b4 {[%clk 0:00:58]}  Bc8 {[%clk 0:00:16]} 39. a4 {[%clk 0:00:56]}  Ke5 {[%clk 0:00:15]} 40. Rc2 {[%clk 0:00:50]}  Bd7 {[%clk 0:00:12]} 41. Rc5+ {[%clk 0:00:50]}  Kd6 {[%clk 0:00:12]} 42. a5 {[%clk 0:00:48]}  Rb1 {[%clk 0:00:11]} 43. Rg5 {[%clk 0:00:42]}  Be8 {[%clk 0:00:11]} 44. Rd5+ {[%clk 0:00:40]}  Ke6 {[%clk 0:00:10]} 45. Rd4 {[%clk 0:00:39]}  Ke5 {[%clk 0:00:10]} 46. Rc4 {[%clk 0:00:39]}  Bf7 {[%clk 0:00:10]} 47. Rc7 {[%clk 0:00:36]}  Ke6 {[%clk 0:00:09]} 48. Rb7 {[%clk 0:00:35]}  Be8 {[%clk 0:00:09]} 49. Kf4 {[%clk 0:00:33]}  Bc6 {[%clk 0:00:09]} 50. Rb6 {[%clk 0:00:33]}  Kd6 {[%clk 0:00:08]} 51. a6 {[%clk 0:00:32]}  Kc7 {[%clk 0:00:08]} 52. Rxc6+ {[%clk 0:00:17]}  Kxc6 {[%clk 0:00:09]} 53. Kg5 {[%clk 0:00:17]}  Rxb4 {[%clk 0:00:07]} 54. Kxg6 {[%clk 0:00:16]}  Rb5 {[%clk 0:00:07]} 55. f4 {[%clk 0:00:15]}  Kd6 {[%clk 0:00:08]} 56. f5 {[%clk 0:00:15]}  Ke7 {[%clk 0:00:08]} 57. a7 {[%clk 0:00:14]}  Ra5 {[%clk 0:00:08]} 58. e5 {[%clk 0:00:13]}  Kf8 {[%clk 0:00:08]} 59. e6 {[%clk 0:00:12]}  Rxa7 {[%clk 0:00:06]} 60. Kxh5 {[%clk 0:00:12]}  Kg7 {[%clk 0:00:07]} 61. Kg5 {[%clk 0:00:12]}  Ra5 {[%clk 0:00:07]} 62. h5 {[%clk 0:00:12]}  Re5 {[%clk 0:00:07]} 63. h6+ {[%clk 0:00:12]}  Kh7 {[%clk 0:00:07]} 64. Kf6 {[%clk 0:00:12]}  Re3 {[%clk 0:00:08]} 65. Ke7 {[%clk 0:00:12]}  Kxh6 {[%clk 0:00:07]} 66. f6 {[%clk 0:00:12]}  Rf3 {[%clk 0:00:06]} 67. Kf7 {[%clk 0:00:08]}  Kg5 {[%clk 0:00:06]} 68. e7 {[%clk 0:00:05]}  Rxf6+ {[%clk 0:00:07]} 69. Kg8 {[%clk 0:00:05]}  Re6 {[%clk 0:00:07]} 70. Kf7 {[%clk 0:00:05]}  Rxe7+ {[%clk 0:00:07]} 71. Kxe7 {[%clk 0:00:05]} 1/2-1/2


[Site "https://www.chess.com"]

[Event "Titled Tuesday Blitz September 28 2021"]
[White "Sadhwani, Raunak"]
[Black "Galego, Luis"]
[WhiteFideId "35093487"]
[BlackFideId "1900072"]
[WhiteElo "2517"]
[BlackElo "2524"]
[Result "1-0"]
[Round "03"]
[TimeControl "180+1"]
[Date "2021.09.28"]
[WhiteClock "0:00:38"]
[BlackClock "0:00:15"]

1. d4 {[%clk 0:03:00]}  Nf6 {[%clk 0:02:59]} 2. Nf3 {[%clk 0:03:01]}  e6 {[%clk 0:02:59]} 3. Bf4 {[%clk 0:03:01]}  d5 {[%clk 0:02:58]} 4. e3 {[%clk 0:03:02]}  Bd6 {[%clk 0:02:58]} 5. Nbd2 {[%clk 0:03:02]}  c5 {[%clk 0:02:56]} 6. c3 {[%clk 0:03:02]}  cxd4 {[%clk 0:02:55]} 7. Bxd6 {[%clk 0:03:01]}  Qxd6 {[%clk 0:02:49]} 8. exd4 {[%clk 0:03:00]}  Nc6 {[%clk 0:02:49]} 9. Bd3 {[%clk 0:03:00]}  O-O {[%clk 0:02:48]} 10. O-O {[%clk 0:03:01]}  e5 {[%clk 0:02:48]} 11. dxe5 {[%clk 0:02:58]}  Nxe5 {[%clk 0:02:48]} 12. Nxe5 {[%clk 0:02:57]}  Qxe5 {[%clk 0:02:48]} 13. Nf3 {[%clk 0:02:58]}  Qc7 {[%clk 0:02:44]} 14. h3 {[%clk 0:02:58]}  Re8 {[%clk 0:02:39]} 15. Qc2 {[%clk 0:02:54]}  Qf4 {[%clk 0:02:34]} 16. Nd4 {[%clk 0:02:52]}  Ne4 {[%clk 0:02:16]} 17. Rae1 {[%clk 0:02:51]}  Bxh3 {[%clk 0:02:09]} 18. gxh3 {[%clk 0:02:36]}  Re5 {[%clk 0:02:09]} 19. Re3 {[%clk 0:02:18]}  Rg5+ {[%clk 0:01:26]} 20. Kh1 {[%clk 0:02:17]}  Re8 {[%clk 0:01:13]} 21. Bxe4 {[%clk 0:01:57]}  dxe4 {[%clk 0:01:10]} 22. Rg1 {[%clk 0:01:48]}  Ree5 {[%clk 0:01:05]} 23. Rxg5 {[%clk 0:01:43]}  Qxg5 {[%clk 0:01:04]} 24. Rxe4 {[%clk 0:01:42]}  Rxe4 {[%clk 0:00:42]} 25. Qxe4 {[%clk 0:01:43]}  Qc1+ {[%clk 0:00:42]} 26. Kg2 {[%clk 0:01:43]}  g6 {[%clk 0:00:42]} 27. b3 {[%clk 0:01:03]}  Qxc3 {[%clk 0:00:41]} 28. Nf3 {[%clk 0:01:02]}  Qc8 {[%clk 0:00:34]} 29. Qd4 {[%clk 0:01:01]}  b6 {[%clk 0:00:33]} 30. Qe4 {[%clk 0:01:01]}  h5 {[%clk 0:00:30]} 31. Qd5 {[%clk 0:01:00]}  Qc2 {[%clk 0:00:27]} 32. Ng5 {[%clk 0:00:56]}  Qc7 {[%clk 0:00:27]} 33. Ne4 {[%clk 0:00:53]}  Qf4 {[%clk 0:00:26]} 34. Qd8+ {[%clk 0:00:51]}  Kg7 {[%clk 0:00:26]} 35. Qd4+ {[%clk 0:00:52]}  Kf8 {[%clk 0:00:24]} 36. Qh8+ {[%clk 0:00:49]}  Ke7 {[%clk 0:00:23]} 37. Qa8 {[%clk 0:00:50]}  Ke6 {[%clk 0:00:18]} 38. Ng3 {[%clk 0:00:46]}  Qc7 {[%clk 0:00:17]} 39. a4 {[%clk 0:00:43]}  a5 {[%clk 0:00:17]} 40. Qe4+ {[%clk 0:00:43]}  Qe5 {[%clk 0:00:16]} 41. Qc6+ {[%clk 0:00:38]}  Qd6 {[%clk 0:00:15]} 42. Qe8+ {[%clk 0:00:38]}  Kf6 {[%clk 0:00:15]} 43. Ne4+ {[%clk 0:00:38]} 1-0


[Site "https://www.chess.com"]

[Event "Titled Tuesday Blitz September 28 2021"]
[White "Savchenko, Boris"]
[Black "Riehle, Marco"]
[WhiteFideId "4147332"]
[BlackFideId "12904392"]
[WhiteElo "2812"]
[BlackElo "2567"]
[Result "1-0"]
[Round "03"]
[TimeControl "180+1"]
[Date "2021.09.28"]
[WhiteClock "0:00:10"]
[BlackClock "0:00:13"]

1. e4 {[%clk 0:01:01]}  e5 {[%clk 0:02:58]} 2. Nf3 {[%clk 0:01:01]}  Nf6 {[%clk 0:02:59]} 3. Nc3 {[%clk 0:01:02]}  Nc6 {[%clk 0:02:58]} 4. Bb5 {[%clk 0:01:02]}  Bc5 {[%clk 0:02:57]} 5. d3 {[%clk 0:01:02]}  d6 {[%clk 0:02:56]} 6. Be3 {[%clk 0:01:02]}  Bb6 {[%clk 0:02:55]} 7. Bxc6+ {[%clk 0:01:02]}  bxc6 {[%clk 0:02:55]} 8. h3 {[%clk 0:01:02]}  O-O {[%clk 0:02:52]} 9. Qe2 {[%clk 0:01:02]}  Re8 {[%clk 0:02:51]} 10. O-O-O {[%clk 0:01:02]}  d5 {[%clk 0:02:51]} 11. Bg5 {[%clk 0:00:57]}  Ba5 {[%clk 0:02:18]} 12. Na4 {[%clk 0:00:54]}  Ba6 {[%clk 0:02:13]} 13. Nc5 {[%clk 0:00:51]}  Bb5 {[%clk 0:02:06]} 14. Nb7 {[%clk 0:00:51]}  Qc8 {[%clk 0:01:52]} 15. Nxa5 {[%clk 0:00:49]}  dxe4 {[%clk 0:01:52]} 16. Ne1 {[%clk 0:00:44]}  Qa6 {[%clk 0:01:47]} 17. Bxf6 {[%clk 0:00:39]}  gxf6 {[%clk 0:01:47]} 18. Nb3 {[%clk 0:00:36]}  exd3 {[%clk 0:01:43]} 19. Nxd3 {[%clk 0:00:36]}  Qxa2 {[%clk 0:01:43]} 20. Qg4+ {[%clk 0:00:35]}  Kh8 {[%clk 0:01:41]} 21. Nb4 {[%clk 0:00:33]}  Qa4 {[%clk 0:01:38]} 22. Kb1 {[%clk 0:00:32]}  Rab8 {[%clk 0:01:36]} 23. Nc5 {[%clk 0:00:31]}  Qa5 {[%clk 0:01:31]} 24. Nd7 {[%clk 0:00:29]}  Be2 {[%clk 0:01:16]} 25. Qxe2 {[%clk 0:00:25]}  Rxb4 {[%clk 0:01:16]} 26. c3 {[%clk 0:00:24]}  Rb5 {[%clk 0:01:10]} 27. Qc2 {[%clk 0:00:22]}  Re6 {[%clk 0:00:54]} 28. Rhe1 {[%clk 0:00:21]}  Rd5 {[%clk 0:00:53]} 29. Rd2 {[%clk 0:00:19]}  Red6 {[%clk 0:00:45]} 30. Nf8 {[%clk 0:00:19]}  Kg7 {[%clk 0:00:42]} 31. Rxd5 {[%clk 0:00:18]}  Qxd5 {[%clk 0:00:37]} 32. Nxh7 {[%clk 0:00:17]}  Qd3 {[%clk 0:00:27]} 33. Qxd3 {[%clk 0:00:17]}  Rxd3 {[%clk 0:00:28]} 34. Kc2 {[%clk 0:00:17]}  Rd6 {[%clk 0:00:26]} 35. Nxf6 {[%clk 0:00:16]}  Kxf6 {[%clk 0:00:27]} 36. Ra1 {[%clk 0:00:16]}  Kg5 {[%clk 0:00:24]} 37. Rxa7 {[%clk 0:00:16]}  Rf6 {[%clk 0:00:25]} 38. f3 {[%clk 0:00:14]}  Kf4 {[%clk 0:00:24]} 39. Rxc7 {[%clk 0:00:15]}  Kg3 {[%clk 0:00:24]} 40. Kd3 {[%clk 0:00:15]}  Rf4 {[%clk 0:00:18]} 41. Rxc6 {[%clk 0:00:14]}  Kxg2 {[%clk 0:00:19]} 42. b4 {[%clk 0:00:13]}  Kxf3 {[%clk 0:00:18]} 43. Rc7 {[%clk 0:00:09]}  e4+ {[%clk 0:00:18]} 44. Kd2 {[%clk 0:00:07]}  Kf2 {[%clk 0:00:14]} 45. Re7 {[%clk 0:00:07]}  f5 {[%clk 0:00:15]} 46. b5 {[%clk 0:00:07]}  Rf3 {[%clk 0:00:15]} 47. b6 {[%clk 0:00:07]}  Rd3+ {[%clk 0:00:15]} 48. Kc2 {[%clk 0:00:08]}  Rd6 {[%clk 0:00:16]} 49. b7 {[%clk 0:00:08]}  Rb6 {[%clk 0:00:16]} 50. c4 {[%clk 0:00:08]}  e3 {[%clk 0:00:17]} 51. c5 {[%clk 0:00:09]}  Rb5 {[%clk 0:00:17]} 52. c6 {[%clk 0:00:09]}  e2 {[%clk 0:00:18]} 53. c7 {[%clk 0:00:09]}  Rxb7 {[%clk 0:00:17]} 54. Rxe2+ {[%clk 0:00:08]}  Kxe2 {[%clk 0:00:16]} 55. c8=Q {[%clk 0:00:09]}  Rg7 {[%clk 0:00:15]} 56. Qe6+ {[%clk 0:00:09]}  Kf1 {[%clk 0:00:14]} 57. Qxf5+ {[%clk 0:00:10]}  Kg1 {[%clk 0:00:14]} 58. Qg4+ {[%clk 0:00:10]}  Kh2 {[%clk 0:00:13]} 59. Qxg7 {[%clk 0:00:10]} 1-0


[Site "https://www.chess.com"]

[Event "Titled Tuesday Blitz September 28 2021"]
[White "Shahinyan, David"]
[Black "Krivonosov, Oleg"]
[WhiteFideId "13304380"]
[BlackFideId "11600349"]
[WhiteElo "2372"]
[BlackElo "2469"]
[Result "0-1"]
[Round "03"]
[TimeControl "180+1"]
[Date "2021.09.28"]
[WhiteClock "0:01:41"]
[BlackClock "0:00:54"]

1. e4 {[%clk 0:02:53]}  e5 {[%clk 0:02:59]} 2. Nf3 {[%clk 0:02:54]}  Nc6 {[%clk 0:02:59]} 3. Bb5 {[%clk 0:02:54]}  Nf6 {[%clk 0:02:58]} 4. d3 {[%clk 0:02:52]}  Bc5 {[%clk 0:02:57]} 5. c3 {[%clk 0:02:51]}  O-O {[%clk 0:02:56]} 6. O-O {[%clk 0:02:50]}  d5 {[%clk 0:02:55]} 7. Bxc6 {[%clk 0:02:48]}  bxc6 {[%clk 0:02:54]} 8. Nxe5 {[%clk 0:02:49]}  dxe4 {[%clk 0:02:53]} 9. d4 {[%clk 0:02:49]}  Bd6 {[%clk 0:02:48]} 10. Nxc6 {[%clk 0:02:46]}  Qe8 {[%clk 0:02:38]} 11. Ne5 {[%clk 0:02:46]}  Bxe5 {[%clk 0:02:37]} 12. dxe5 {[%clk 0:02:47]}  Qxe5 {[%clk 0:02:36]} 13. h3 {[%clk 0:02:46]}  Ba6 {[%clk 0:02:31]} 14. Re1 {[%clk 0:02:46]}  Rfd8 {[%clk 0:02:30]} 15. Qa4 {[%clk 0:02:45]}  Bd3 {[%clk 0:02:24]} 16. Be3 {[%clk 0:02:45]}  Nd5 {[%clk 0:02:19]} 17. Nd2 {[%clk 0:02:45]}  Nb6 {[%clk 0:02:09]} 18. Qb3 {[%clk 0:02:38]}  c5 {[%clk 0:02:04]} 19. a4 {[%clk 0:02:27]}  Rab8 {[%clk 0:02:00]} 20. Qa3 {[%clk 0:02:26]}  Rbc8 {[%clk 0:01:55]} 21. Rad1 {[%clk 0:02:19]}  f5 {[%clk 0:01:42]} 22. f3 {[%clk 0:02:10]}  f4 {[%clk 0:01:33]} 23. Bxc5 {[%clk 0:01:56]}  Qxc5+ {[%clk 0:01:28]} 24. Qxc5 {[%clk 0:01:55]}  Rxc5 {[%clk 0:01:28]} 25. Nxe4 {[%clk 0:01:56]}  Rcc8 {[%clk 0:01:27]} 26. Ng5 {[%clk 0:01:56]}  Bf5 {[%clk 0:01:13]} 27. a5 {[%clk 0:01:51]}  Nc4 {[%clk 0:01:09]} 28. Rxd8+ {[%clk 0:01:51]}  Rxd8 {[%clk 0:01:08]} 29. b4 {[%clk 0:01:51]}  h6 {[%clk 0:01:03]} 30. Ne4 {[%clk 0:01:49]}  Ne3 {[%clk 0:01:01]} 31. Re2 {[%clk 0:01:44]}  Rd1+ {[%clk 0:00:56]} 32. Kh2 {[%clk 0:01:40]}  Nf1+ {[%clk 0:00:54]} 33. Kg1 {[%clk 0:01:40]}  Ng3+ {[%clk 0:00:55]} 34. Kf2 {[%clk 0:01:41]}  Rf1# {[%clk 0:00:54]} 0-1


[Site "https://www.chess.com"]